Cogmind - Beta 11 X8 @@@ ROGUE MODE // 2021.11.10 @ 13:36:00 Player: ZEROAFFEX Result: Destroyed by D-53 Grenadier with Mini Grenade Launcher Performance ------------- Evolutions (0) 0 Regions Visited (2) 400 Robots Destroyed (22) 110 Value Destroyed (532) 532 Prototype IDs (2) 40 Alien Tech Used (0) 0 Bonus (0) 0 TOTAL SCORE: 1082 Bonus ------- None Cogmind --------- Core Integrity 0/250 Matter 285/300 Energy 97/125 System Corruption 0% Temperature Cool (32) Movement Rolling (140) Ox4 Location -10/Mines Parts ------- > --- POWER (1) -------- Light Ion Engine > --- PROPULSION (2) --- Wheel Wheel > --- UTILITY (2) ------ Huge Storage Unit > --- WEAPON (2) ------- Small Laser Mining Laser > --- INVENTORY (25) --- Ion Engine Ion Engine Light Ion Engine Light Nuclear Core Light Treads Light Treads Light Treads Light Treads Wheel Wheel Compact Wheel Compact Wheel Improved Heat Sink Improved Heat Sink High-capacity Matter Pod (200) Visual Processing Unit Improved Terrain Scanner ECM Suite Bomb Drone Bay Small Laser Small Laser Assault Rifle Peak State ------------ > --- POWER ------------ Ion Engine > --- PROPULSION ------- Wheel Compact Wheel > --- UTILITY ---------- Improved Heat Sink Huge Storage Unit > --- WEAPON ----------- Particle Gun Particle Gun > --- INVENTORY -------- Ion Engine Light Ion Engine Light Nuclear Core Light Treads Light Treads Light Treads Light Treads Wheel Wheel Wheel Compact Wheel Improved Heat Sink High-capacity Matter Pod Visual Processing Unit Improved Terrain Scanner ECM Suite Weapon Shielding Bomb Drone Bay Small Laser Small Laser Small Laser Assault Rifle Assault Rifle Mining Laser [Rating: 15] Favorites ----------- Power Ion Engine Engine Ion Engine Propulsion Wheel Treads Light Treads Wheel Wheel Utility Huge Storage Unit Device Improved Heat Sink Storage Huge Storage Unit Protection Weapon Shielding Weapon Assault Rifle Energy Gun Particle Gun Ballistic Gun Assault Rifle Special Weapon Mining Laser Build | -11 -10 -10 ------- Run | Scr Mat Min Slots Evolved . | . . . Power . | . . . Propulsion . | . . . Utility . | . . . Weapon . | . . . Parts Attached 34 | 8 12 14 Power 4 | 1 2 1 Engine 4 | 1 2 1 Core . | . . . Reactor . | . . . Propulsion 16 | 3 4 9 Treads 5 | . 1 4 Leg . | . . . Wheel 11 | 3 3 5 Hover . | . . . Flight . | . . . Utility 6 | 2 3 1 Device 3 | 1 2 . Storage 2 | 1 1 . Processor . | . . . Hackware . | . . . Protection 1 | . . 1 Artifact . | . . . Weapon 8 | 2 3 3 Energy Gun 4 | . 3 1 Energy Cannon . | . . . Ballistic Gun 3 | 2 . 1 Ballistic Cannon . | . . . Launcher . | . . . Special Weapon 1 | . . 1 Impact Weapon . | . . . Slashing Weapon . | . . . Piercing Weapon . | . . . Special Melee Weapon . | . . . Unidentified Prototypes . | . . . Parts Lost 11 | . 6 5 Power 1 | . 1 . Propulsion 3 | . 2 1 Utility 1 | . . 1 Weapon 6 | . 3 3 Highest Loss Streak 3 | . 3 3 Average Slot Usage (%) 98 | . 98 99 Engine 14 | . 14 14 Wheel 26 | . 26 25 Device 12 | . 14 7 Storage 14 | . 14 14 Protection 1 | . . 6 Energy Gun 16 | . 14 21 Ballistic Gun 11 | . 12 5 Naked Turns . | . . . Heaviest Build 92 | 13 92 92 Greatest Support 40 | 26 26 40 Greatest Overweight (x) 8 | . 8 5 Average Overweight (x) 3 | . 3 3 Largest Inventory Capacity 25 | 8 25 25 Average Capacity 24 | 7 24 25 Most Carried 25 | 7 25 25 Average Carried 17 | 3 16 24 Final Capacity 25 | 8 25 25 Final Carried 25 | 7 25 23 Class Distribution -------------------- 100% | Mutant Dominant Class ---------------- Mutant | -10/Materials Mutant | -10/Mines Resources | -11 -10 -10 ----------- Run | Scr Mat Min Matter Collected 967 | 316 514 137 Remotely . | . . . Salvage Created 878 | 64 761 53 Parts 42 | 6 36 . Haulers Intercepted 2 | . 2 . Recyclers Shooed 2 | 1 1 . Parts Field Recycled . | . . . Retrieved Matter . | . . . Parts Self-Destructed . | . . . Prevented . | . . . Kills | -11 -10 -10 ------- Run | Scr Mat Min Combat Hostiles Destroyed 16 | . 12 4 Guns 15 | . 11 4 AOE 1 | . 1 . Classes Destroyed 7 | 1 5 1 Builder 1 | . 1 . Tunneler 4 | 3 1 . Hauler 2 | . 2 . Recycler 1 | . 1 . Watcher 2 | . 2 . Grunt 12 | . 12 . Assembled 4 | . . 4 Best Kill Streak 3 | 3 3 3 Combat Bots Only 3 | . 2 3 Max Kills in Single Turn 1 | 1 1 1 Gunslinging . | . . . Exploded 1 | . 1 . Melee . | . . . Uniques/NPCs Destroyed . | . . . Combat | -11 -10 -10 -------- Run | Scr Mat Min Damage Taken 1356 | . 705 651 Core 254 | . 103 151 Absorbed by Shields . | . . . Core Remaining (%) 100 | 100 . . Volleys Fired 84 | 9 64 11 Largest 2 | 2 2 2 Hottest 140 | 40 130 140 Shots Fired 168 | 18 128 22 Gun 167 | 18 128 21 Cannon . | . . . Launcher . | . . . Special 1 | . . 1 Kinetic 96 | 18 68 10 Thermal 50 | . 38 12 Explosive . | . . . Electromagnetic 22 | . 22 . Robot Hit Streak 13 | 5 13 5 Robot Miss Streak 3 | 1 3 2 Penetration Max . | . . . Secondary Targets 4 | . 2 2 Max Gunslinging Chain 1 | . 1 1 Shots Hit Robots 108 | 12 84 12 Core Hits 43 | 4 33 6 Critical Kills . | . . . Critical Parts Destroyed . | . . . Critical Strikes 1 | . 1 . Corrupt 1 | . 1 . Melee Attacks . | . . . Impact . | . . . Slashing . | . . . Piercing . | . . . Sneak Attacks . | . . . Combat Hostiles . | . . . Follow-up Attacks . | . . . Damage Inflicted 1531 | 147 1216 168 Guns 1469 | 147 1178 144 Cannons . | . . . Explosions 32 | . 32 . Melee . | . . . Ramming 6 | . 6 . Kinetic 817 | 147 611 59 Thermal 465 | . 356 109 Explosive . | . . . Electromagnetic 243 | . 243 . Impact . | . . . Slashing . | . . . Piercing . | . . . Highest Corruption . | . . . Average Corruption . | . . . Corruption Purged . | . . . Overload Shots . | . . . Overflow Damage . | . . . Projectiles . | . . . Explosions . | . . . Melee . | . . . Knockbacks . | . . . Impact . | . . . Kinetic . | . . . Secondary . | . . . Self-Inflicted Damage 3 | . 3 . Shots . | . . . Rammed 1 | . 1 . Targets Rammed 1 | . 1 . Kicked . | . . . Crushed . | . . . Highest Temperature 261 | . 261 86 Average Temperature 52 | . 57 34 Received Heat Transfer 396 | . 396 . Siege Activations . | . . . Robots Corrupted . | . . . Combat Hostiles . | . . . Parts Fried . | . . . Impact Corruptions . | . . . Robots Melted . | . . . Combat Hostiles . | . . . Parts Melted 3 | . 3 . Heat Transferred 1037 | . 777 260 Parts Sabotaged . | . . . Parts Stolen . | . . . Parts Stripped . | . . . Power Chain Reactions 1 | . 1 . Missiles Intercepted . | . . . Alert | -11 -10 -10 ------- Run | Scr Mat Min Peak Influence 168 | 15 168 25 Initial 25 | . 9 25 Average 46 | 4 60 11 Maximum Alert Level . | . . . Low Security (%) 100 | 100 100 100 Level 1 . | . . . Level 2 . | . . . Level 3 . | . . . Level 4 . | . . . Level 5 . | . . . High Security . | . . . Max Security . | . . . Squads Dispatched 2 | . 2 . Investigation 2 | . 2 . Extermination . | . . . Reinforcement . | . . . Assault . | . . . Garrison . | . . . Intercept . | . . . Construction Impeded . | . . . Haulers Reinforced . | . . . Active Scanning Responses . | . . . Cargo Convoy Interrupts . | . . . Stealth | -11 -10 -10 --------- Run | Scr Mat Min Distress Signals . | . . . Communications Jammed . | . . . Distress Signals . | . . . Times Spotted 37 | . 28 9 Peak Tracking Total 7 | . 3 7 Tactical Retreats 4 | . 2 2 Traps | -11 -10 -10 ------- Run | Scr Mat Min Traps Triggered 1 | . 1 . Indirectly . | . . . Trap Hack Attempts . | . . . Triggered . | . . . Disarmed . | . . . Reprogrammed . | . . . Reused . | . . . Traps Extracted . | . . . Installed . | . . . Triggered 1 | . 1 . Machines | -11 -10 -10 ---------- Run | Scr Mat Min Machines Disabled 1 | . 1 . Max in Single Turn 1 | . 1 . Machines Sabotaged . | . . . Garrisons Compromised . | . . . Overloaded Fab Kills . | . . . Hacking | -11 -10 -10 --------- Run | Scr Mat Min Machines Accessed 5 | . 4 1 Terminals 4 | . 4 . Fabricators . | . . . Repair Stations . | . . . Recycling Units . | . . . Scanalyzers . | . . . Garrison Access . | . . . Total Hacks 12 | . 11 1 Successful 10 | . 9 1 Failed 2 | . 2 . Catastrophic . | . . . Database Lockouts . | . . . Manual 9 | . 9 . Terminals 11 | . 11 . Fabricators . | . . . Repair Stations . | . . . Recycling Units . | . . . Scanalyzers . | . . . Garrison Access . | . . . Terminal Hacks 5 | . 4 1 Prototype ID Bank 1 | . 1 . Open Door 1 | . . 1 Unreport Threat 1 | . 1 . Locate Traps 1 | . 1 . Hauler Manifests 1 | . 1 . Fabricator Hacks . | . . . Repair Station Hacks . | . . . Recycling Unit Hacks . | . . . Scanalyzer . | . . . Garrison Access Hacks . | . . . Unauthorized Hacks 5 | . 5 . Terminals 5 | . 5 . Track 4 | . 4 . Botnet 1 | . 1 . Fabricators . | . . . Repair Stations . | . . . Recycling Units . | . . . Scanalyzers . | . . . Garrison Access . | . . . Data Cores Recovered . | . . . Used . | . . . Hacking Detections 4 | . 4 . Full Trace Events . | . . . Feedback Events . | . . . Feedback Blocked . | . . . Robot Schematics Acquired . | . . . Robots Built . | . . . Authchips . | . . . Time . | . . . Total Robot Build Rating . | . . . Part Schematics Acquired . | . . . Parts Built . | . . . Authchips . | . . . Time . | . . . Total Part Build Rating . | . . . Parts Repaired . | . . . Time . | . . . Parts Recycled . | . . . Recycled Matter . | . . . Retrieved Matter . | . . . Retrieved Components . | . . . Parts Scanalyzed . | . . . Part Schematics Acquired . | . . . Parts Damaged . | . . . Bothacking | -11 -10 -10 ------------ Run | Scr Mat Min Used RIF Installer . | . . . Robots Hacked . | . . . Non-combat . | . . . Combat . | . . . Robot Hacks Applied . | . . . Relay Couplers Released . | . . . Fabnet Peak Effective % . | . . . Robots Rewired . | . . . Allies Hacked . | . . . Hacks Repelled . | . . . Allies | -11 -10 -10 -------- Run | Scr Mat Min Total Allies 3 | . . 3 Largest Group 3 | . . 3 Highest-Rated Group 40 | . . 40 Highest-Rated Ally 16 | . . 16 Total Orders . | . . . Ally Attacks 19 | . . 19 Total Damage 213 | . . 213 Kills 5 | . . 5 Allies Corrupted . | . . . Allies Melted . | . . . Intel | -11 -10 -10 ------- Run | Scr Mat Min Robot Analysis Total . | . . . Derelict Logs Recovered . | . . . Drone Launches . | . . . Drone Recoveries . | . . . Exploration | -11 -10 -10 ------------- Run | Scr Mat Min Turns Passed 1838 | 87 1335 416 Spaces Moved 1039 | 49 730 260 Core 3 | 3 . . Treads 2 | . . 2 Legs . | . . . Wheels 1034 | 46 730 258 Hover . | . . . Flight . | . . . Fastest Speed 50 | 50 80 135 Average Speed 135 | 84 138 138 Slowest Speed 320 | 90 200 320 Overloaded Moves . | . . . Propulsion Burnouts . | . . . Robots Hopped . | . . . Cave-ins Triggered . | . . . Exploration Rate (%) 44 | 3 92 39 Regions Visited 2 Branch Regions 1 Pre-discovered Areas . | . . . Known Exits Taken . | . . . Unknown Exits Taken 2 | 1 1 . Scrap Searched . | . . . Spaces Dug . | . . . Terrain Destroyed 3 | . 3 . Melee . | . . . Projectile . | . . . AOE 3 | . 3 . Terrain Rammed . | . . . Walls Destroyed . | . . . Machines Disabled . | . . . Actions | -11 -10 -10 --------- Run | Scr Mat Min Total 1284 | 72 923 289 Wait 94 | 1 93 . Move 1037 | 48 729 260 Hop . | . . . Pick Up 30 | 6 22 2 Fast Attach 7 | 7 . . Attach 10 | . 6 4 Detach . | . . . Swap 17 | 1 6 10 Drop 4 | . 2 2 Fire 84 | 9 64 11 Melee . | . . . Ram 1 | . 1 . Kick . | . . . Crush . | . . . Escape Stasis . | . . . Rewire . | . . . Trap . | . . . Miscellaneous . | . . . Route ------- -11/Scrapyard -10/Materials (discovered 5 exits: [*Mat x3] / *Min x2) -10/Mines (discovered 1 exit: [*Mat]) History --------- Turn | Location | Event 26 | -11/Scrapyard | Discovered new exit (range 16) 88 | -11/Scrapyard | Entered Materials 311 | -10/Materials | Build established: Mutant 529 | -10/Materials | Discovered new exit (range 15) 740 | -10/Materials | Lost 3 parts (1p2w) 745 | -10/Materials | Discovered new exit (range 6) 832 | -10/Materials | Discovered new exit (range 5) 904 | -10/Materials | Discovered new exit (range 15) 1177 | -10/Materials | Discovered new exit (range 9) 1423 | -10/Materials | Entered Mines 1499 | -10/Mines | Found the Drone Emporium 1506 | -10/Mines | Found Prototype Device 1544 | -10/Mines | Discovered new exit (range 15) 1562 | -10/Mines | Assisted by bots powering up and referring to "LRC-V3" 1576 | -10/Mines | Assembled infested the area 1655 | -10/Mines | Core integrity fell below 50% 1666 | -10/Mines | Core integrity fell below 20% 1839 | -10/Mines | Destroyed by D-53 Grenadier with Mini Grenade Launcher Last Messages --------------- 01694_ Acquired 14 matter. 01697_ Acquired 15 matter. 01747_ as-96499 destroyed. 01750_ Acquired 15 matter. 01776_ Acquired 11 matter. 01777_ Acquired 63 matter. 01818_ U-05 Engineer lays Concrete. 01818_ U-05 Engineer builds a Wall. 01821_ Acquired Wheel. 01823_ U-05 Engineer lays Concrete. 01824_ U-05 Engineer builds a Wall. 01825_ Particle Gun destroyed. 01825_ Assault Rifle destroyed. 01828_ U-05 Engineer builds a Wall. 01830_ Acquired 10 matter. 01832_ U-05 Engineer builds a Wall. 01833_ U-05 Engineer lays Concrete. 01836_ U-05 Engineer builds a Wall. 01837_ Weapon Shielding destroyed. 01837_ R-06 Scavenger destroyed. Map ----- +----------------------------------------------------+ | ?????????????????????????????????????????????? | | ?????????????????????????????????????????????? | | ?????????????????????????????????????????????? | | ?????????????????????????????????????????????? | | ?????????????????????????????????????????????? | | ?????????????????????????????????????????????? | | ?????????????????????????????????????????????? | | ?????????????????????????????????????????????? | | ?????????????????????????????????????????????? | | ?????????????????????????????????????????????? | | ?????????????????????????????????????????????? | | ??????????????????#####??????????????????????? | | ?????????????????## ??????????????????????? | | ?????????????????# ??????????????????????? | | ?????????????????# ??????????????????????? | | ?????????????????# ??????????????????????? | | ?????????????????# ??????????????????????? | | ?????????????????# ??????????????????????? | | ?????????????????? ??????????????????????? | | ??????????????###?? ??????????????????????? | | ??????????????# ## #??????????????????????? | | ??????????????# #### ####???????????????????? | | ???????????# ## % u ## ##???????????????? | | ???????????# !%u# #???????????????? | | ?????????????# d = ##???????????????? | | ??????????????# *# @ =%* #???????????????? | | ??????????????#!%= ! ###############??? | | ??????????????#%%* #??? | | ???????########%% #??? | | ???????# ## ############# #??? | | ???????# ###### ## #???????????# #??? | | ???????# #????# ## ??????????# #??? | | ???????# #????# ## ????????# #??? | | ???????# #????# ### ### #???????# #??? | | ???????# #????## ##?# #?? #???????# #??? | | ???????# #?????# #??? #??? #??????# #??? | | ???????# #?????# #???# ####????=#??????# #??? | | ???????# #?????# #????# #????????#??????# #??? | | ?????### #?????# #????# #???????????????# ###? | | ?##### #?????# #????# ???????????????# #? | | ?# < #?????# #????###???????%???????### #? | | ?# ##????# #??????????????%#????????#=## | | ?# ##???# #??????????????%#???????## ## | | ?##### ##### #??????????????!#?????### = | | ?????# #??######??????%#????## | | ?????# ########?##""""##????? #????# # | | ?????## ##????????#" !"#?#### ##???# ## | | ??????# #?????????#" "### ##### ##? | | ??????# #?????????## ### ##?# | | ??????# #?????????### ## #??# | +----------------------------------------------------+ Best States ------------- Heat Dissipation 39 Energy Generation 10 Energy Capacity 250 Matter Stores 300 Matter Capacity 300 Sight Range 16 Terrain Scan Range 16 Terrain Scan Density 10 Weapon Shielding 33 Evasion (%) 44 Recoil Reduction 2 Item Schematics ----------------- None Robot Schematics ------------------ None Fabricated ------------ Nothing Alien Tech Used ----------------- None Achievements -------------- None Challenges ------------ None Game ------ Seed GravitonArmoredMeganuke Manual? 0 Play Time 00:17:19 Cumulative 79.3 hours Start 2021.11.10 @ 13:19:31 End 2021.11.10 @ 13:36:00 Sessions 1 Manual Loads 0 Difficulty Rogue Special Mode None Game No. 62 Rogue 60 Adventurer 2 Explorer 0 Win Type - Total 0 Types 0/0/0/0/0/0/0/0/0 Lore% 34 Gallery% 34 Achievement% 32 Wizard Run 0 Options --------- ASCII 0 Keyboard 0 Movement Mouse Keybinds 1 Fullscreen 1 Font 18/TerminusBold Map View 76x50 Tactical HUD 1 Map Filters NONE Filters NONE Steam 1 RUN: 921e41a2-311a-4a0e-abea-3ba65f4f8e7c